fUST/lending_fUST_20250301
["ID","MTS","AMOUNT","RATE_DAILY","PERIOD"]
[354946941,1740838245387,-151.0,0.00030662,7]
[354946942,1740838245396,-151.0,0.00030662,7]
[354946943,1740838245406,-151.0,0.00030662,7]
[354946944,1740838245415,-151.0,0.00030662,7]
[354946945,1740838245425,-151.0,0.00030662,7]
[354946946,1740838245435,-151.0,0.00030662,7]
[354946948,1740838245445,-151.0,0.00030662,7]
[354946949,1740838245454,-151.0,0.00030662,7]
[354946951,1740838245464,-151.0,0.00030662,7]
[354946952,1740838245476,-151.0,0.00030662,7]
[354946954,1740838245486,-151.0,0.00030662,7]
[354946955,1740838245496,-241.920465,0.00030662,7]
[354946957,1740838245506,-151.0,0.00030664,7]
[354946959,1740838245517,-151.0,0.00030664,7]
[354946960,1740838245528,-151.0,0.00030664,7]
[354946962,1740838245538,-151.0,0.00030664,7]
[354946963,1740838245548,-151.0,0.00030664,7]
[354946965,1740838245557,-151.0,0.00030664,7]
[354946967,1740838245567,-151.0,0.00030664,7]
[354946968,1740838245576,-178.555912,0.00030664,7]
[354946970,1740838245585,-151.0,0.00030664,7]
[354946971,1740838245596,-151.0,0.00030664,7]
[354946973,1740838245609,-151.0,0.00030664,7]
[354946974,1740838245620,-151.0,0.00030664,7]
[354946976,1740838245630,-151.0,0.00030664,7]
[354946978,1740838245639,-151.0,0.00030664,7]
[354946979,1740838245651,-151.0,0.00030664,7]
[354946981,1740838245660,-151.0,0.00030664,7]
[354946982,1740838245670,-198.441285,0.00030664,7]
[354946984,1740838245680,-151.0,0.00030664,7]
[354946986,1740838245690,-151.0,0.00030664,7]
[354946987,1740838245699,-151.0,0.00030664,7]
[354946989,1740838245709,-151.0,0.00030664,7]
[354946990,1740838245719,-273.039398,0.00030664,7]
[354946992,1740838245729,-177.918737,0.00030664,7]
[354946994,1740838245738,-196.929782,0.00030664,7]
[354946995,1740838245747,-196.929782,0.00030664,7]
[354946997,1740838245757,-196.929782,0.00030664,7]
[354946999,1740838245767,-196.929782,0.00030664,7]
[354947000,1740838245776,-196.929782,0.00030664,7]
[354947002,1740838245786,-196.929782,0.00030664,7]
[354947004,1740838245796,-196.929782,0.00030664,7]
[354947005,1740838245806,-196.929782,0.00030664,7]
[354947007,1740838245815,-196.929782,0.00030664,7]
[354947009,1740838245825,-196.929782,0.00030664,7]
[354947010,1740838245834,-196.929782,0.00030664,7]
[354947012,1740838245844,-196.929782,0.00030664,7]
[354947014,1740838245853,-196.929782,0.00030664,7]
[354947016,1740838245863,-196.929782,0.00030664,7]
[354947017,1740838245873,-196.929782,0.00030664,7]
[354947019,1740838245883,-196.929782,0.00030664,7]
[354947020,1740838245892,-196.929782,0.00030664,7]
[354947022,1740838245901,-196.929782,0.00030664,7]
[354947024,1740838245911,-196.929782,0.00030664,7]
[354947025,1740838245921,-196.929786,0.00030664,7]
[354947027,1740838245931,-151.0,0.00030664,7]
[354947029,1740838245941,-151.0,0.00030664,7]
[354947031,1740838245950,-151.0,0.00030664,7]
[354947032,1740838245960,-151.0,0.00030664,7]
[354947034,1740838245971,-151.0,0.00030664,7]
[354947036,1740838245980,-151.0,0.00030664,7]
[354947037,1740838245990,-151.0,0.00030664,7]
[354947039,1740838246000,-151.0,0.00030664,7]
[354947041,1740838246010,-151.0,0.00030664,7]
[354947042,1740838246019,-151.0,0.00030664,7]
[354947044,1740838246029,-151.0,0.00030664,7]
[354947046,1740838246039,-151.0,0.00030664,7]
[354947047,1740838246048,-151.0,0.00030664,7]
[354947049,1740838246058,-151.0,0.00030664,7]
[354947051,1740838246067,-151.0,0.00030664,7]
[354947052,1740838246077,-151.0,0.00030664,7]
[354947054,1740838246087,-157.309162,0.00030664,7]
[354947056,1740838246096,-151.0,0.00030664,7]
[354947058,1740838246106,-269.040221,0.00030664,7]
[354947059,1740838246116,-500.0,0.00030664,2]
[354947061,1740838246125,-1795.94,0.00030664,2]
[354947063,1740838246135,-1792.69,0.00030664,2]
[354947064,1740838246145,-592.99,0.00030664,2]
[354947066,1740838246155,-500.0,0.00030664,2]
[354947068,1740838246165,-565.35,0.00030664,2]
[354947070,1740838246175,-4146.85,0.00030664,2]
[354947071,1740838246184,-500.0,0.00030664,2]
[354947073,1740838246194,-1320.38,0.00030664,2]
[354947075,1740838246204,-500.0,0.00030664,2]
[354947077,1740838246214,-500.0,0.00030664,2]
[354947079,1740838246225,-500.0,0.00030664,2]
[354947082,1740838246235,-9373.72,0.00030664,2]
[354947083,1740838246245,-5555.0,0.00030664,2]
[354947085,1740838246256,-7654.0,0.00030664,2]
[354947087,1740838246266,-2160.1,0.00030664,2]
[354947088,1740838246276,-516.44564632,0.00030664,2]
[354947090,1740838246285,-500.0,0.00030664,2]
[354947092,1740838246295,-1032.77,0.00030664,2]
[354947093,1740838246304,-3917.11,0.00030664,2]
[354947095,1740838246314,-500.0,0.00030664,2]
[354947097,1740838246324,-624.68,0.00030664,2]
[354947098,1740838246333,-3292.64,0.00030664,2]
[354947100,1740838246343,-415.20473459,0.00030664,2]
[354947102,1740838246352,-1471.96,0.00030664,2]
[354947104,1740838246362,-6808.36,0.00030664,2]
[354947105,1740838246372,-500.0,0.00030664,2]
[354947107,1740838246382,-10865.92,0.00030664,2]
[354947109,1740838246391,-151.0,0.00030665,7]
[354947111,1740838246401,-151.0,0.00030665,7]
[354947114,1740838246410,-233.889723,0.00030665,7]
[354947116,1740838246420,-151.0,0.00030665,7]
[354947117,1740838246429,-151.0,0.00030665,7]
[354947119,1740838246439,-151.0,0.00030665,7]
[354947121,1740838246448,-198.236088,0.00030665,7]
[354947122,1740838246458,-151.0,0.00030665,7]
[354947124,1740838246467,-151.0,0.00030665,7]
[354947126,1740838246477,-151.0,0.00030665,7]
[354947127,1740838246487,-151.0,0.00030665,7]
[354947129,1740838246497,-151.0,0.00030665,7]
[354947131,1740838246506,-151.0,0.00030665,7]
[354947132,1740838246515,-151.0,0.00030665,7]
[354947134,1740838246525,-151.0,0.00030665,7]
[354947136,1740838246534,-151.0,0.00030665,7]
[354947137,1740838246544,-151.0,0.00030665,7]
[354947139,1740838246553,-151.0,0.00030665,7]
[354947141,1740838246563,-151.0,0.00030665,7]
[354947143,1740838246572,-151.0,0.00030665,7]
[354947144,1740838246582,-151.0,0.00030665,7]
[354947146,1740838246592,-151.0,0.00030665,7]
[354947148,1740838246602,-151.0,0.00030665,7]
[354947149,1740838246614,-178.225384,0.00030665,7]
[354947151,1740838246623,-424.667045,0.00030665,7]
[354947153,1740838246633,-424.667045,0.00030665,7]
[354947154,1740838246643,-424.667045,0.00030665,7]
[354947156,1740838246652,-424.667045,0.00030665,7]
[354947158,1740838246662,-424.667045,0.00030665,7]
[354947160,1740838246671,-424.667045,0.00030665,7]
[354947161,1740838246682,-424.667045,0.00030665,7]
[354947163,1740838246693,-424.667045,0.00030665,7]
[354947165,1740838246702,-424.667045,0.00030665,7]
[354947166,1740838246711,-424.667045,0.00030665,7]
[354947168,1740838246721,-424.667045,0.00030665,7]
[354947170,1740838246730,-424.667045,0.00030665,7]
[354947171,1740838246740,-424.667045,0.00030665,7]
[354947173,1740838246749,-424.667045,0.00030665,7]
[354947175,1740838246759,-424.667045,0.00030665,7]
[354947177,1740838246768,-424.667045,0.00030665,7]
[354947178,1740838246778,-424.667045,0.00030665,7]
[354947180,1740838246788,-424.667045,0.00030665,7]
[354947182,1740838246798,-424.667045,0.00030665,7]
[354947183,1740838246807,-424.667049,0.00030665,7]
[354947185,1740838246817,-160.0,0.00030666,10]
[354947187,1740838246827,-500.0,0.00030667,2]
[354947188,1740838246837,-151.83311861,0.00030667,2]
[354947190,1740838246846,-500.0,0.00030667,2]
[354947192,1740838246856,-151.0,0.00030667,7]
[354947194,1740838246866,-154.6886,0.00030667,7]
[354947195,1740838246876,-500.0,0.00030667,2]
[354947197,1740838246886,-500.0,0.00030667,2]
[354947199,1740838246895,-510.85,0.00030667,2]
[354947200,1740838246905,-151.0,0.00030667,7]
[354947202,1740838246914,-151.0,0.00030667,7]
[354947204,1740838246924,-224.32975902,0.00030667,2]
[354947205,1740838246934,-500.0,0.00030667,2]
[354947207,1740838246944,-500.0,0.00030667,2]
[354947210,1740838246965,-500.0,0.00030667,2]
[354947212,1740838246977,-1105.76,0.00030667,2]
[354947214,1740838246987,-500.0,0.00030667,2]
[354947216,1740838246999,-500.0,0.00030667,2]
[354947218,1740838247009,-193.60664695,0.00030667,2]
[354947220,1740838247019,-500.0,0.00030667,2]
[354947233,1740838247138,-500.0,0.00030667,2]
[354947235,1740838247150,-500.0,0.00030667,2]
[354947237,1740838247160,-500.0,0.00030667,2]
[354947239,1740838247170,-500.0,0.00030667,2]
[354947241,1740838247180,-549.79066763,0.00030667,2]
[354947243,1740838247190,-500.0,0.00030667,2]
[354947245,1740838247200,-500.0,0.00030667,2]
[354947247,1740838247210,-500.0,0.00030667,2]
[354947249,1740838247221,-500.0,0.00030667,2]
[354947251,1740838247231,-500.0,0.00030667,2]
[354947253,1740838247240,-500.0,0.00030667,2]
[354947255,1740838247250,-596.96,0.00030667,2]
[354947257,1740838247260,-500.0,0.00030667,2]
[354947259,1740838247269,-187.978112,0.00030667,7]
[354947260,1740838247279,-500.0,0.00030667,2]
[354947262,1740838247288,-500.0,0.00030667,2]
[354947264,1740838247298,-187.978112,0.00030667,7]
[354947266,1740838247308,-187.978112,0.00030667,7]
[354947268,1740838247318,-187.978112,0.00030667,7]
[354947270,1740838247328,-187.978112,0.00030667,7]
[354947273,1740838247339,-187.978112,0.00030667,7]
[354947274,1740838247348,-187.978112,0.00030667,7]
[354947275,1740838247358,-187.978112,0.00030667,7]
[354947276,1740838247368,-187.978112,0.00030667,7]
[354947277,1740838247377,-187.978112,0.00030667,7]
[354947278,1740838247387,-500.0,0.00030667,2]
[354947279,1740838247396,-187.978112,0.00030667,7]
[354947280,1740838247405,-747.22,0.00030667,2]
[354947281,1740838247415,-500.0,0.00030667,2]
[354947282,1740838247424,-187.978112,0.00030667,7]
[354947283,1740838247434,-187.978112,0.00030667,7]
[354947284,1740838247444,-187.978112,0.00030667,7]
[354947285,1740838247453,-187.978112,0.00030667,7]
[354947286,1740838247463,-187.978112,0.00030667,7]
[354947287,1740838247474,-187.978112,0.00030667,7]
[354947288,1740838247483,-187.978112,0.00030667,7]
[354947289,1740838247494,-187.978112,0.00030667,7]
[354947290,1740838247503,-187.978116,0.00030667,7]
[354947291,1740838247513,-500.0,0.00030667,2]
[354947292,1740838247522,-629.74,0.00030667,2]
[354947293,1740838247531,-500.0,0.00030667,2]
[354947294,1740838247541,-500.0,0.00030667,2]
[354947295,1740838247550,-500.0,0.00030667,2]
[354947296,1740838247560,-500.0,0.00030667,2]
[354947297,1740838247569,-500.0,0.00030667,2]
[354947298,1740838247579,-500.0,0.00030667,2]
[354947299,1740838247590,-500.0,0.00030667,2]
[354947300,1740838247600,-500.0,0.00030667,2]
[354947301,1740838247611,-1550.5,0.00030667,2]
[354947302,1740838247620,-500.0,0.00030667,2]
[354947303,1740838247630,-500.0,0.00030667,2]
[354947304,1740838247641,-525.66281093,0.00030667,2]
[354947305,1740838247650,-500.0,0.00030667,2]
[354947306,1740838247659,-500.0,0.00030667,2]
[354947307,1740838247669,-500.0,0.00030667,2]
[354947308,1740838247680,-500.0,0.00030667,2]
[354947309,1740838247690,-500.0,0.00030667,2]
[354947310,1740838247700,-500.0,0.00030667,2]
[354947311,1740838247709,-500.0,0.00030667,2]
[354947312,1740838247719,-500.0,0.00030667,2]
[354947313,1740838247730,-500.0,0.00030667,2]
[354947314,1740838247740,-404.01813003,0.00030667,2]
[354947316,1740838247749,-500.0,0.00030667,2]
[354947317,1740838247759,-598.20576571,0.00030667,2]
[354947318,1740838247769,-1594.27,0.00030667,2]
[354947319,1740838247779,-500.0,0.00030667,2]
[354947321,1740838247788,-500.0,0.00030667,2]
[354947322,1740838247798,-500.0,0.00030667,2]
[354947324,1740838247808,-500.0,0.00030667,2]
[354947326,1740838247817,-500.0,0.00030667,2]
[354947327,1740838247827,-500.0,0.00030667,2]
[354947330,1740838247837,-500.0,0.00030667,2]
[354947331,1740838247847,-1814.63,0.00030667,2]
[354947333,1740838247856,-500.0,0.00030667,2]
[354947335,1740838247866,-200.0,0.00030667,2]
[354947337,1740838247875,-500.0,0.00030667,2]
[354947339,1740838247885,-500.0,0.00030667,2]
[354947341,1740838247894,-833.68,0.00030667,2]
[354947343,1740838247904,-500.0,0.00030667,2]
[354947345,1740838247913,-500.0,0.00030667,2]
[354947347,1740838247922,-500.0,0.00030667,2]
[354947349,1740838247932,-500.0,0.00030667,2]
[354947351,1740838247941,-500.0,0.00030667,2]
[354947353,1740838247951,-1081.56,0.00030667,2]
[354947355,1740838247959,-505.98815368,0.00030667,2]
[354947357,1740838247969,-500.0,0.00030667,2]
[354947359,1740838247979,-500.0,0.00030667,2]
[354947361,1740838247989,-500.0,0.00030667,2]
[354947363,1740838247999,-500.0,0.00030667,2]
[354947365,1740838248009,-584.68,0.00030667,2]
[354947367,1740838248019,-698.26,0.00030667,2]
[354947369,1740838248029,-751.62,0.00030667,2]
[354947371,1740838248039,-500.0,0.00030667,2]
[354947373,1740838248050,-500.0,0.00030667,2]
[354947375,1740838248060,-213.69101172,0.00030667,2]
[354947377,1740838248070,-1000.0,0.00030667,2]
[354947379,1740838248080,-622.99,0.00030667,2]
[354947381,1740838248090,-500.0,0.00030667,2]
[354947383,1740838248101,-500.0,0.00030667,2]
[354947385,1740838248111,-500.0,0.00030667,2]
[354947387,1740838248122,-464.05927202,0.00030667,2]
[354947389,1740838248132,-500.0,0.00030667,2]
[354947391,1740838248141,-502.32249601,0.00030667,2]
[354947393,1740838248151,-500.0,0.00030667,2]
[354947395,1740838248161,-1267.97,0.00030667,2]
[354947397,1740838248170,-500.0,0.00030667,2]
[354947399,1740838248180,-664.35,0.00030667,2]
[354947401,1740838248190,-500.0,0.00030667,2]
[354947403,1740838248200,-500.0,0.00030667,2]
[354947405,1740838248210,-500.0,0.00030667,2]
[354947407,1740838248220,-500.0,0.00030667,2]
[354947408,1740838248229,-500.0,0.00030667,2]
[354947409,1740838248239,-500.0,0.00030667,2]
[354947410,1740838248249,-953.01,0.00030667,2]
[354947411,1740838248259,-500.0,0.00030667,2]
[354947412,1740838248269,-500.0,0.00030667,2]
[354947413,1740838248278,-1150.8,0.00030667,2]
[354947414,1740838248288,-502.95608307,0.00030667,2]
[354947415,1740838248297,-500.0,0.00030667,2]
[354947416,1740838248307,-500.0,0.00030667,2]
[354947418,1740838248316,-500.0,0.00030667,2]
[354947420,1740838248325,-500.0,0.00030667,2]
[354947422,1740838248335,-1211.07,0.00030667,2]
[354947424,1740838248344,-501.08,0.00030667,2]
[354947426,1740838248354,-500.0,0.00030667,2]
[354947428,1740838248364,-500.0,0.00030667,2]
[354947430,1740838248373,-511.05097749,0.00030667,2]
[354947432,1740838248383,-500.0,0.00030667,2]
[354947434,1740838248392,-712.5,0.00030667,2]
[354947436,1740838248402,-500.0,0.00030667,2]
[354947438,1740838248411,-1640.65,0.00030667,2]
[354947440,1740838248421,-500.0,0.00030667,2]
[354947442,1740838248430,-1673.47,0.00030667,2]
[354947444,1740838248439,-500.0,0.00030667,2]
[354947446,1740838248449,-523.7,0.00030667,2]
[354947448,1740838248458,-500.0,0.00030667,2]
[354947450,1740838248468,-616.87498064,0.00030667,2]
[354947452,1740838248478,-500.0,0.00030667,2]
[354947454,1740838248488,-500.0,0.00030667,2]
[354947456,1740838248497,-500.0,0.00030667,2]
[354947458,1740838248506,-500.0,0.00030667,2]
[354947460,1740838248516,-520.16438122,0.00030667,2]
[354947462,1740838248525,-222.65696791,0.00030667,2]
[354947464,1740838248535,-500.0,0.00030667,2]
[354947466,1740838248544,-721.43,0.00030667,2]
[354947468,1740838248554,-500.0,0.00030667,2]
[354947470,1740838248563,-500.0,0.00030667,2]
[354947472,1740838248573,-500.0,0.00030667,2]
[354947474,1740838248583,-500.0,0.00030667,2]
[354947476,1740838248593,-506.93336145,0.00030667,2]
[354947478,1740838248606,-500.0,0.00030667,2]
[354947480,1740838248616,-500.0,0.00030667,2]
[354947482,1740838248625,-504.98,0.00030667,2]
[354947484,1740838248635,-500.0,0.00030667,2]
[354947486,1740838248644,-500.0,0.00030667,2]
[354947488,1740838248654,-181.23774386,0.00030667,2]
[354947490,1740838248664,-500.0,0.00030667,2]
[354947492,1740838248674,-500.0,0.00030667,2]
[354947494,1740838248684,-500.0,0.00030667,2]
[354947496,1740838248693,-500.0,0.00030667,2]
[354947498,1740838248703,-500.0,0.00030667,2]
[354947500,1740838248712,-500.0,0.00030667,2]
[354947502,1740838248723,-500.0,0.00030667,2]
[354947504,1740838248732,-500.0,0.00030667,2]
[354947506,1740838248742,-3004.65,0.00030667,2]
[354947508,1740838248752,-1335.09,0.00030667,2]
[354947510,1740838248762,-500.0,0.00030667,2]
[354947512,1740838248771,-500.0,0.00030667,2]
[354947514,1740838248781,-500.0,0.00030667,2]
[354947516,1740838248791,-500.0,0.00030667,2]
[354947518,1740838248800,-500.0,0.00030667,2]
[354947520,1740838248811,-500.0,0.00030667,2]
[354947522,1740838248821,-500.0,0.00030667,2]
[354947524,1740838248831,-500.0,0.00030667,2]
[354947526,1740838248840,-500.0,0.00030667,2]
[354947528,1740838248850,-304.40893929,0.00030667,2]
[354947530,1740838248859,-1289.05,0.00030667,2]
[354947532,1740838248869,-500.0,0.00030667,2]
[354947534,1740838248878,-500.0,0.00030667,2]
[354947536,1740838248888,-500.0,0.00030667,2]
[354947538,1740838248904,-500.0,0.00030667,2]
[354947540,1740838248913,-500.0,0.00030667,2]
[354947542,1740838248923,-535.03,0.00030667,2]
[354947544,1740838248934,-500.0,0.00030667,2]
[354947546,1740838248944,-596.46,0.00030667,2]
[354947548,1740838248954,-500.0,0.00030667,2]
[354947550,1740838248964,-503.15627078,0.00030667,2]
[354947552,1740838248974,-500.0,0.00030667,2]
[354947554,1740838248984,-3402.83,0.00030667,2]
[354947556,1740838248994,-564.67,0.00030667,2]
[354947558,1740838249003,-500.0,0.00030667,2]
[354947560,1740838249014,-500.0,0.00030667,2]
[354947562,1740838249024,-500.0,0.00030667,2]
[354947564,1740838249034,-500.0,0.00030667,2]
[354947566,1740838249043,-514.06547718,0.00030667,2]
[354947568,1740838249053,-580.95329574,0.00030667,2]
[354947570,1740838249063,-1840.56,0.00030667,2]
[354947572,1740838249073,-1961.81,0.00030667,2]
[354947574,1740838249083,-548.3,0.00030667,2]
[354947576,1740838249092,-676.56,0.00030667,2]
[354947578,1740838249102,-500.0,0.00030667,2]
[354947580,1740838249112,-1890.98,0.00030667,2]
[354947582,1740838249122,-500.0,0.00030667,2]
[354947584,1740838249132,-445.23001802,0.00030667,2]
[354947586,1740838249141,-1035.89,0.00030667,2]
[354947588,1740838249151,-1031.28,0.00030667,2]
[354947590,1740838249161,-656.38,0.00030667,2]
[354947592,1740838249171,-500.0,0.00030667,2]
[354947594,1740838249182,-500.0,0.00030667,2]
[354947596,1740838249192,-500.0,0.00030667,2]
[354947599,1740838249202,-500.0,0.00030667,2]
[354947601,1740838249212,-500.0,0.00030667,2]
[354947603,1740838249222,-500.0,0.00030667,2]
[354947605,1740838249232,-787.63,0.00030667,2]
[354947607,1740838249242,-2134.59,0.00030667,2]
[354947609,1740838249252,-500.0,0.00030667,2]
[354947611,1740838249262,-944.36,0.00030667,2]
[354947613,1740838249272,-1084.38,0.00030667,2]
[354947615,1740838249282,-605.16,0.00030667,2]
[354947617,1740838249292,-500.0,0.00030667,2]
[354947619,1740838249302,-1457.69,0.00030667,2]
[354947621,1740838249312,-500.0,0.00030667,2]
[354947623,1740838249322,-500.0,0.00030667,2]
[354947625,1740838249332,-500.0,0.00030667,2]
[354947627,1740838249342,-1792.61,0.00030667,2]
[354947629,1740838249352,-500.0,0.00030667,2]
[354947631,1740838249362,-500.0,0.00030667,2]
[354947633,1740838249372,-500.0,0.00030667,2]
[354947635,1740838249382,-500.0,0.00030667,2]
[354947637,1740838249392,-500.0,0.00030667,2]
[354947639,1740838249403,-500.0,0.00030667,2]
[354947641,1740838249413,-680.07,0.00030667,2]
[354947643,1740838249422,-602.1,0.00030667,2]
[354947645,1740838249432,-538.62,0.00030667,2]
[354947647,1740838249442,-544.0,0.00030667,2]
[354947649,1740838249451,-500.0,0.00030667,2]
[354947651,1740838249461,-505.99997502,0.00030667,2]
[354947653,1740838249470,-1093.46,0.00030667,2]
[354947655,1740838249479,-676.96,0.00030667,2]
[354947657,1740838249488,-500.0,0.00030667,2]
[354947659,1740838249498,-1263.55,0.00030667,2]
[354947661,1740838249507,-500.0,0.00030667,2]
[354947663,1740838249517,-536.52,0.00030667,2]
[354947665,1740838249527,-500.0,0.00030667,2]
[354947667,1740838249537,-500.0,0.00030667,2]
[354947669,1740838249546,-500.0,0.00030667,2]
[354947671,1740838249556,-1909.2,0.00030667,2]
[354947673,1740838249566,-500.0,0.00030667,2]
[354947675,1740838249575,-500.0,0.00030667,2]
[354947677,1740838249585,-500.0,0.00030667,2]
[354947679,1740838249596,-443.58350236,0.00030667,2]
[354947681,1740838249610,-1431.38,0.00030667,2]
[354947683,1740838249619,-500.0,0.00030667,2]
[354947685,1740838249628,-500.0,0.00030667,2]
[354947687,1740838249638,-507.39,0.00030667,2]
[354947689,1740838249648,-509.17010742,0.00030667,2]
[354947691,1740838249657,-31893.94,0.00030667,2]
[354947693,1740838249667,-500.0,0.00030667,2]
[354947696,1740838249681,-500.0,0.00030667,2]
[354947698,1740838249691,-1499.18,0.00030667,2]
[354947700,1740838249701,-682.75,0.00030667,2]
[354947702,1740838249710,-500.0,0.00030667,2]
[354947704,1740838249720,-500.0,0.00030667,2]
[354947706,1740838249730,-1095.62,0.00030667,2]
[354947708,1740838249740,-500.0,0.00030667,2]
[354947710,1740838249749,-500.0,0.00030667,2]
[354947712,1740838249759,-2286.08,0.00030667,2]
[354947714,1740838249768,-500.0,0.00030667,2]
[354947716,1740838249782,-500.0,0.00030667,2]
[354947718,1740838249792,-817.63,0.00030667,2]
[354947720,1740838249801,-264.15797101,0.00030667,2]
[354947722,1740838249811,-500.0,0.00030667,2]
[354947724,1740838249820,-500.0,0.00030667,2]
[354947726,1740838249829,-500.0,0.00030667,2]
[354947728,1740838249839,-500.0,0.00030667,2]
[354947730,1740838249848,-500.0,0.00030667,2]
[354947732,1740838249858,-858.01,0.00030667,2]
[354947734,1740838249872,-2029.88,0.00030667,2]
[354947736,1740838249881,-500.0,0.00030667,2]
[354947738,1740838249891,-500.0,0.00030667,2]
[354947740,1740838249900,-500.0,0.00030667,2]
[354947742,1740838249910,-500.0,0.00030667,2]
[354947744,1740838249919,-519.4773465,0.00030667,2]
[354947746,1740838249930,-500.0,0.00030667,2]
[354947748,1740838249939,-615.9118225,0.00030667,2]
[354947750,1740838249948,-500.0,0.00030667,2]
[354947752,1740838249958,-500.0,0.00030667,2]
[354947754,1740838249967,-515.34,0.00030667,2]
[354947756,1740838249977,-500.0,0.00030667,2]
[354947758,1740838249987,-507.26556762,0.00030667,2]
[354947760,1740838249997,-500.0,0.00030667,2]
[354947762,1740838250006,-500.0,0.00030667,2]
[354947764,1740838250015,-500.0,0.00030667,2]
[354947766,1740838250026,-500.0,0.00030667,2]
[354947768,1740838250036,-500.0,0.00030667,2]
[354947770,1740838250046,-500.0,0.00030667,2]
[354947772,1740838250056,-1060.49,0.00030667,2]
[354947774,1740838250066,-500.0,0.00030667,2]
[354947776,1740838250075,-500.0,0.00030667,2]
[354947778,1740838250085,-1323.98,0.00030667,2]
[354947780,1740838250095,-1175.03,0.00030667,2]
[354947782,1740838250105,-500.0,0.00030667,2]
[354947784,1740838250115,-850.99,0.00030667,2]
[354947786,1740838250124,-151.0,0.00030668,7]
[354947788,1740838250133,-151.0,0.00030668,7]
[354947790,1740838250143,-151.0,0.00030668,7]
[354947792,1740838250153,-151.0,0.00030668,7]
[354947794,1740838250163,-151.0,0.00030668,7]
[354947796,1740838250172,-151.0,0.00030668,7]
[354947798,1740838250182,-283.187842,0.00030668,7]
[354947799,1740838250191,-151.0,0.00030668,7]
[354947802,1740838250201,-205.537317,0.00030668,7]
[354947803,1740838250211,-3708.849721,0.00030668,5]
[354947805,1740838250220,-3708.849721,0.00030668,5]
[354947807,1740838250230,-3708.849721,0.00030668,5]
[354947809,1740838250239,-3708.849721,0.00030668,5]
[354947811,1740838250248,-3708.849721,0.00030668,5]
[354947813,1740838250258,-3708.849721,0.00030668,5]
[354947815,1740838250268,-3708.849721,0.00030668,5]
[354947817,1740838250278,-3708.849721,0.00030668,5]
[354947819,1740838250289,-3708.849721,0.00030668,5]
[354947821,1740838250299,-3708.849721,0.00030668,5]
[354947823,1740838250308,-3708.849721,0.00030668,5]
[354947825,1740838250318,-3708.849721,0.00030668,5]
[354947827,1740838250327,-3708.849721,0.00030668,5]
[354947829,1740838250337,-3708.849721,0.00030668,5]
[354947831,1740838250348,-3708.849721,0.00030668,5]
[354947833,1740838250358,-3708.849721,0.00030668,5]
[354947835,1740838250368,-3708.849721,0.00030668,5]
[354947837,1740838250378,-3708.849721,0.00030668,5]
[354947839,1740838250388,-3708.849721,0.00030668,5]
[354947841,1740838250397,-3708.84973,0.00030668,5]
[354947843,1740838250407,-27195.16651661,0.00030669,2]
[354947845,1740838250416,-500.0,0.00030673,5]